fUSD/lending_fUSD_20240913
["ID","MTS","AMOUNT","RATE_DAILY","PERIOD"]
[337955040,1726215050459,-900.43,0.00014368,2]
[337955041,1726215050468,-500.0,0.00014368,2]
[337955042,1726215050478,-500.0,0.00014368,2]
[337955043,1726215050487,-1039.22,0.00014368,2]
[337955044,1726215050497,-523.34,0.00014368,2]
[337955045,1726215050506,-500.0,0.00014368,2]
[337955046,1726215050516,-500.0,0.00014368,2]
[337955047,1726215050525,-500.0,0.00014368,2]
[337955048,1726215050534,-500.0,0.00014368,2]
[337955049,1726215050546,-624.63,0.00014368,2]
[337955050,1726215050555,-500.0,0.00014368,2]
[337955051,1726215050565,-500.0,0.00014368,2]
[337955052,1726215050574,-500.0,0.00014368,2]
[337955053,1726215050583,-500.0,0.00014368,2]
[337955054,1726215050592,-500.0,0.00014368,2]
[337955055,1726215050602,-500.0,0.00014368,2]
[337955056,1726215050611,-500.0,0.00014368,2]
[337955057,1726215050621,-500.0,0.00014368,2]
[337955058,1726215050631,-500.0,0.00014368,2]
[337955059,1726215050640,-518.77,0.00014368,2]
[337955060,1726215050649,-569.31,0.00014368,2]
[337955061,1726215050659,-584.76778453,0.00014368,2]
[337955062,1726215050668,-729.1,0.00014368,2]
[337955063,1726215050677,-640.0,0.00014368,2]
[337955064,1726215050686,-500.0,0.00014368,2]
[337955065,1726215050696,-500.0,0.00014368,2]
[337955066,1726215050705,-881.65,0.00014368,2]
[337955067,1726215050714,-500.0,0.00014368,2]
[337955068,1726215050723,-500.0,0.00014368,2]
[337955069,1726215050732,-500.0,0.00014368,2]
[337955070,1726215050741,-999.98,0.00014368,2]
[337955071,1726215050750,-500.0,0.00014368,2]
[337955072,1726215050759,-559.62,0.00014368,2]
[337955073,1726215050768,-500.0,0.00014368,2]
[337955074,1726215050777,-500.0,0.00014368,2]
[337955075,1726215050786,-515.85,0.00014368,2]
[337955076,1726215050795,-500.0,0.00014368,2]
[337955077,1726215050805,-500.0,0.00014368,2]
[337955078,1726215050814,-500.0,0.00014368,2]
[337955079,1726215050823,-500.0,0.00014368,2]
[337955080,1726215050833,-500.0,0.00014368,2]
[337955081,1726215050842,-500.0,0.00014368,2]
[337955082,1726215050852,-500.0,0.00014368,2]
[337955083,1726215050863,-611.85,0.00014368,2]
[337955084,1726215050872,-500.0,0.00014368,2]
[337955085,1726215050882,-500.0,0.00014368,2]
[337955086,1726215050892,-500.0,0.00014368,2]
[337955087,1726215050902,-500.0,0.00014368,2]
[337955088,1726215050912,-1686.59,0.00014368,2]
[337955089,1726215050921,-836.38,0.00014368,2]
[337955090,1726215050931,-500.0,0.00014368,2]
[337955091,1726215050940,-639.18,0.00014368,2]
[337955092,1726215050949,-500.0,0.00014368,2]
[337955093,1726215050959,-912.53,0.00014368,2]
[337955094,1726215050969,-765.06,0.00014368,2]
[337955095,1726215050979,-500.0,0.00014368,2]
[337955096,1726215050988,-731.7,0.00014368,2]
[337955097,1726215050997,-500.0,0.00014368,2]
[337955098,1726215051007,-1072.37,0.00014368,2]
[337955099,1726215051016,-500.0,0.00014368,2]
[337955100,1726215051025,-582.6,0.00014368,2]
[337955101,1726215051035,-937.43,0.00014368,2]
[337955102,1726215051044,-1358.16,0.00014368,2]
[337955103,1726215051054,-500.0,0.00014368,2]
[337955104,1726215051063,-1011.25,0.00014368,2]
[337955105,1726215051073,-657.82,0.00014368,2]
[337955106,1726215051082,-565.63,0.00014368,2]
[337955107,1726215051092,-728.8,0.00014368,2]
[337955108,1726215051103,-500.0,0.00014368,2]
[337955109,1726215051113,-1395.0,0.00014368,2]
[337955110,1726215051122,-1008.79,0.00014368,2]
[337955111,1726215051131,-500.0,0.00014368,2]
[337955112,1726215051140,-772.7,0.00014368,2]
[337955113,1726215051150,-954.42,0.00014368,2]
[337955114,1726215051160,-561.91,0.00014368,2]
[337955115,1726215051169,-844.41,0.00014368,2]
[337955116,1726215051178,-723.06,0.00014368,2]
[337955117,1726215051188,-630.01,0.00014368,2]
[337955118,1726215051199,-728.96,0.00014368,2]
[337955119,1726215051208,-546.09,0.00014368,2]
[337955120,1726215051217,-821.29,0.00014368,2]
[337955121,1726215051227,-539.21,0.00014368,2]
[337955122,1726215051236,-500.0,0.00014368,2]
[337955123,1726215051245,-2451.71,0.00014368,2]
[337955124,1726215051254,-1002.37,0.00014368,2]
[337955125,1726215051264,-500.0,0.00014368,2]
[337955126,1726215051273,-500.0,0.00014368,2]
[337955127,1726215051282,-2196.8,0.00014368,2]
[337955128,1726215051292,-500.0,0.00014368,2]
[337955129,1726215051301,-500.0,0.00014368,2]
[337955130,1726215051311,-927.19,0.00014368,2]
[337955131,1726215051320,-632.69,0.00014368,2]
[337955132,1726215051329,-567.01,0.00014368,2]
[337955133,1726215051338,-1077.13,0.00014368,2]
[337955134,1726215051347,-705.72,0.00014368,2]
[337955135,1726215051356,-657.8,0.00014368,2]
[337955136,1726215051365,-500.0,0.00014368,2]
[337955137,1726215051374,-2304.45,0.00014368,2]
[337955138,1726215051391,-500.0,0.00014368,2]
[337955139,1726215051400,-500.0,0.00014368,2]
[337955140,1726215051409,-500.0,0.00014368,2]
[337955141,1726215051418,-555.07,0.00014368,2]
[337955142,1726215051428,-2081.77,0.00014368,2]
[337955143,1726215051438,-3984.62,0.00014368,2]
[337955144,1726215051447,-1259.45,0.00014368,2]
[337955145,1726215051458,-1388.79,0.00014368,2]
[337955146,1726215051467,-515.33,0.00014368,2]
[337955147,1726215051476,-529.02,0.00014368,2]
[337955148,1726215051485,-1160.88,0.00014368,2]
[337955149,1726215051494,-9159.22,0.00014368,2]
[337955150,1726215051505,-500.0,0.00014368,2]
[337955151,1726215051514,-500.0,0.00014368,2]
[337955152,1726215051524,-1378.69,0.00014368,2]
[337955153,1726215051534,-500.0,0.00014368,2]
[337955154,1726215051543,-546.42,0.00014368,2]
[337955155,1726215051553,-500.0,0.00014368,2]
[337955156,1726215051562,-512.21,0.00014368,2]
[337955157,1726215051572,-1969.34,0.00014368,2]
[337955158,1726215051581,-500.0,0.00014368,2]
[337955159,1726215051591,-500.0,0.00014368,2]
[337955160,1726215051600,-500.0,0.00014368,2]
[337955161,1726215051609,-510.12,0.00014368,2]
[337955162,1726215051619,-1718.15,0.00014368,2]
[337955163,1726215051628,-500.0,0.00014368,2]
[337955164,1726215051637,-500.0,0.00014368,2]
[337955165,1726215051647,-930.15,0.00014368,2]
[337955166,1726215051656,-995.15,0.00014368,2]
[337955167,1726215051666,-507.67,0.00014368,2]
[337955168,1726215051675,-500.0,0.00014368,2]
[337955169,1726215051685,-500.0,0.00014368,2]
[337955170,1726215051696,-500.0,0.00014368,2]
[337955171,1726215051705,-500.0,0.00014368,2]
[337955172,1726215051715,-1499.63,0.00014368,2]
[337955173,1726215051724,-816.89,0.00014368,2]
[337955174,1726215051734,-963.72,0.00014368,2]
[337955175,1726215051743,-647.64,0.00014368,2]
[337955176,1726215051752,-530.2,0.00014368,2]
[337955177,1726215051762,-294.42,0.00014384,2]
[337955178,1726215051771,-150.0,0.00014441,2]
[337955179,1726215051783,-150.0,0.00014487,2]
[337955180,1726215051792,-500.0,0.00014521,2]
[337955181,1726215051803,-333.014638,0.00014521,2]
[337955182,1726215051814,-150.0,0.00014578,2]
[337955183,1726215051824,-641.5,0.0001464,2]
[337955184,1726215051834,-500.0,0.0001464,2]
[337955185,1726215051844,-589.65,0.0001464,2]
[337955186,1726215051853,-707.44,0.0001464,2]
[337955187,1726215051863,-500.0,0.0001464,2]
[337955188,1726215051872,-562.19,0.0001464,2]
[337955189,1726215051882,-500.0,0.0001464,2]
[337955190,1726215051891,-500.0,0.0001464,2]
[337955191,1726215051901,-1732.36,0.0001464,2]
[337955192,1726215051911,-734.28,0.0001464,2]
[337955193,1726215051921,-656.1,0.0001464,2]
[337955194,1726215051930,-793.9,0.0001464,2]
[337955195,1726215051940,-500.0,0.0001464,2]
[337955196,1726215051950,-500.0,0.0001464,2]
[337955197,1726215051959,-500.0,0.0001464,2]
[337955198,1726215051968,-500.0,0.0001464,2]
[337955199,1726215051977,-9936.32,0.0001464,2]
[337955200,1726215051987,-589.8,0.0001464,2]
[337955201,1726215051996,-500.0,0.0001464,2]
[337955202,1726215052006,-500.0,0.0001464,2]
[337955203,1726215052015,-877.92,0.0001464,2]
[337955204,1726215052025,-1491.4,0.0001464,2]
[337955205,1726215052035,-603.17,0.00014641,2]
[337955206,1726215052046,-500.0,0.00014641,2]
[337955207,1726215052056,-2031.99,0.00014641,2]
[337955208,1726215052067,-7749.41,0.00014641,2]
[337955209,1726215052077,-1172.44,0.00014641,2]
[337955210,1726215052087,-11772.08,0.00014641,2]
[337955211,1726215052097,-500.0,0.00014641,2]
[337955212,1726215052106,-3573.67,0.00014641,2]
[337955213,1726215052116,-698.45,0.00014641,2]
[337955214,1726215052126,-500.0,0.00014641,2]
[337955215,1726215052135,-597.43,0.00014641,2]
[337955216,1726215052147,-500.0,0.00014641,2]
[337955217,1726215052158,-870.07,0.00014641,2]
[337955218,1726215052168,-566.37,0.00014641,2]
[337955219,1726215052178,-500.0,0.00014641,2]
[337955220,1726215052187,-500.0,0.00014641,2]
[337955221,1726215052196,-500.0,0.00014641,2]
[337955222,1726215052206,-500.0,0.00014641,2]
[337955223,1726215052215,-500.0,0.00014642,2]
[337955224,1726215052224,-500.0,0.00014642,2]
[337955225,1726215052234,-833.65,0.00014642,2]
[337955226,1726215052243,-500.0,0.00014642,2]
[337955227,1726215052253,-500.0,0.00014642,2]
[337955228,1726215052263,-500.0,0.00014642,2]
[337955229,1726215052272,-525.23,0.00014642,2]
[337955230,1726215052282,-940.19,0.00014642,2]
[337955231,1726215052291,-1501.03,0.00014642,2]
[337955232,1726215052300,-500.0,0.00014642,2]
[337955233,1726215052310,-500.0,0.00014642,2]
[337955234,1726215052320,-500.0,0.00014642,2]
[337955235,1726215052330,-500.0,0.00014642,2]
[337955236,1726215052339,-525.92,0.00014642,2]
[337955237,1726215052348,-500.0,0.00014642,2]
[337955238,1726215052357,-500.0,0.00014642,2]
[337955239,1726215052367,-548.22,0.00014642,2]
[337955240,1726215052376,-502.91,0.00014642,2]
[337955241,1726215052390,-500.0,0.00014642,2]
[337955242,1726215052399,-568.98,0.00014642,2]
[337955243,1726215052409,-500.0,0.00014642,2]
[337955244,1726215052418,-528.37,0.00014642,2]
[337955245,1726215052427,-562.82,0.00014642,2]
[337955246,1726215052437,-500.0,0.00014642,2]
[337955247,1726215052447,-500.0,0.00014642,2]
[337955248,1726215052456,-500.0,0.00014642,2]
[337955249,1726215052466,-579.18,0.00014642,2]
[337955250,1726215052475,-500.0,0.00014642,2]
[337955251,1726215052485,-500.0,0.00014642,2]
[337955252,1726215052496,-500.0,0.00014642,2]
[337955253,1726215052506,-500.0,0.00014642,2]
[337955254,1726215052516,-500.0,0.00014642,2]
[337955255,1726215052525,-500.0,0.00014642,2]
[337955256,1726215052534,-500.0,0.00014642,2]
[337955257,1726215052544,-500.0,0.00014642,2]
[337955258,1726215052554,-660.73,0.00014642,2]
[337955259,1726215052564,-309.39,0.00014642,2]
[337955260,1726215052573,-500.0,0.00014642,2]
[337955261,1726215052583,-500.0,0.00014642,2]
[337955262,1726215052592,-689.93,0.00014642,2]
[337955263,1726215052602,-1031.64,0.00014642,2]
[337955264,1726215052611,-500.0,0.00014642,2]
[337955265,1726215052621,-500.0,0.00014642,2]
[337955266,1726215052630,-500.0,0.00014642,2]
[337955267,1726215052640,-1094.0,0.00014642,2]
[337955268,1726215052649,-500.0,0.00014642,2]
[337955269,1726215052659,-500.0,0.00014642,2]
[337955270,1726215052668,-621.08,0.00014642,2]
[337955271,1726215052678,-548.15,0.00014642,2]
[337955272,1726215052688,-688.54,0.00014642,2]
[337955273,1726215052698,-500.0,0.00014642,2]
[337955274,1726215052707,-504.46,0.00014642,2]
[337955275,1726215052717,-500.0,0.00014642,2]
[337955276,1726215052726,-500.0,0.00014642,2]
[337955277,1726215052735,-500.0,0.00014642,2]
[337955278,1726215052744,-500.0,0.00014642,2]
[337955279,1726215052754,-607.84,0.00014642,2]
[337955280,1726215052763,-531.69,0.00014642,2]
[337955281,1726215052772,-500.0,0.00014642,2]
[337955282,1726215052782,-761.87,0.00014642,2]
[337955283,1726215052792,-500.0,0.00014642,2]
[337955284,1726215052802,-667.65,0.00014642,2]
[337955285,1726215052811,-500.0,0.00014642,2]
[337955286,1726215052821,-500.0,0.00014642,2]
[337955287,1726215052830,-500.0,0.00014642,2]
[337955288,1726215052839,-900.43,0.00014642,2]
[337955289,1726215052849,-500.0,0.00014642,2]
[337955290,1726215052858,-500.0,0.00014642,2]
[337955291,1726215052867,-1039.22,0.00014642,2]
[337955292,1726215052877,-523.34,0.00014642,2]
[337955293,1726215052886,-500.0,0.00014642,2]
[337955294,1726215052896,-500.0,0.00014642,2]
[337955295,1726215052905,-500.0,0.00014642,2]
[337955296,1726215052915,-500.0,0.00014642,2]
[337955297,1726215052924,-624.63,0.00014642,2]
[337955298,1726215052934,-500.0,0.00014642,2]
[337955299,1726215052943,-500.0,0.00014642,2]
[337955300,1726215052953,-500.0,0.00014642,2]
[337955301,1726215052963,-500.0,0.00014642,2]
[337955302,1726215052973,-500.0,0.00014642,2]
[337955303,1726215052983,-500.0,0.00014642,2]
[337955304,1726215052993,-610.14167371,0.00014642,2]
[337955305,1726215053002,-500.0,0.00014642,2]
[337955306,1726215053012,-500.0,0.00014642,2]
[337955307,1726215053022,-518.77,0.00014642,2]
[337955308,1726215053031,-569.31,0.00014642,2]
[337955309,1726215053041,-729.1,0.00014642,2]
[337955310,1726215053051,-640.0,0.00014642,2]
[337955311,1726215053060,-500.0,0.00014642,2]
[337955312,1726215053070,-500.0,0.00014642,2]
[337955313,1726215053079,-881.65,0.00014642,2]
[337955314,1726215053089,-500.0,0.00014642,2]
[337955315,1726215053100,-500.0,0.00014642,2]
[337955316,1726215053109,-500.0,0.00014642,2]
[337955317,1726215053119,-999.98,0.00014642,2]
[337955318,1726215053129,-500.0,0.00014642,2]
[337955319,1726215053139,-559.62,0.00014642,2]
[337955320,1726215053148,-500.0,0.00014642,2]
[337955321,1726215053158,-500.0,0.00014642,2]
[337955322,1726215053168,-515.85,0.00014642,2]
[337955323,1726215053178,-500.0,0.00014642,2]
[337955324,1726215053188,-626.31821472,0.00014642,2]
[337955325,1726215053199,-500.0,0.00014642,2]
[337955326,1726215053209,-500.0,0.00014642,2]
[337955327,1726215053219,-500.0,0.00014642,2]
[337955328,1726215053230,-500.0,0.00014642,2]
[337955329,1726215053240,-500.0,0.00014642,2]
[337955330,1726215053250,-611.85,0.00014642,2]
[337955331,1726215053260,-500.0,0.00014642,2]
[337955332,1726215053270,-500.0,0.00014642,2]
[337955333,1726215053280,-500.0,0.00014642,2]
[337955334,1726215053291,-500.0,0.00014642,2]
[337955335,1726215053301,-1686.59,0.00014642,2]
[337955336,1726215053310,-836.38,0.00014642,2]
[337955337,1726215053320,-500.0,0.00014642,2]
[337955338,1726215053330,-639.18,0.00014642,2]
[337955339,1726215053340,-500.0,0.00014642,2]
[337955340,1726215053350,-912.53,0.00014642,2]
[337955341,1726215053361,-765.06,0.00014642,2]
[337955342,1726215053371,-500.0,0.00014642,2]
[337955343,1726215053383,-731.7,0.00014642,2]
[337955344,1726215053395,-500.0,0.00014642,2]
[337955345,1726215053405,-1072.37,0.00014642,2]
[337955346,1726215053414,-500.0,0.00014642,2]
[337955347,1726215053425,-582.6,0.00014642,2]
[337955348,1726215053435,-937.43,0.00014642,2]
[337955349,1726215053445,-1358.16,0.00014642,2]
[337955350,1726215053455,-500.0,0.00014642,2]
[337955351,1726215053466,-1011.25,0.00014642,2]
[337955352,1726215053476,-657.82,0.00014642,2]
[337955353,1726215053486,-565.63,0.00014642,2]
[337955354,1726215053496,-728.8,0.00014642,2]
[337955355,1726215053506,-500.0,0.00014642,2]
[337955356,1726215053515,-1395.0,0.00014642,2]
[337955357,1726215053525,-1008.79,0.00014642,2]
[337955358,1726215053535,-500.0,0.00014642,2]
[337955359,1726215053545,-772.7,0.00014642,2]
[337955360,1726215053555,-954.42,0.00014642,2]
[337955361,1726215053564,-561.91,0.00014642,2]
[337955362,1726215053573,-844.41,0.00014642,2]
[337955363,1726215053584,-723.06,0.00014642,2]
[337955364,1726215053594,-630.01,0.00014642,2]
[337955365,1726215053604,-728.96,0.00014642,2]
[337955366,1726215053613,-546.09,0.00014642,2]
[337955367,1726215053623,-821.29,0.00014642,2]
[337955368,1726215053633,-539.21,0.00014642,2]
[337955369,1726215053643,-500.0,0.00014642,2]
[337955370,1726215053653,-2451.71,0.00014642,2]
[337955371,1726215053663,-1002.37,0.00014642,2]
[337955372,1726215053674,-236.53145657,0.00014642,2]
[337955373,1726215053685,-500.0,0.00014642,2]
[337955374,1726215053696,-2196.8,0.00014642,2]
[337955375,1726215053954,-500.0,0.00014642,2]
[337955376,1726215053968,-500.0,0.00014642,2]
[337955377,1726215053978,-927.19,0.00014642,2]
[337955378,1726215053988,-632.69,0.00014642,2]
[337955379,1726215053998,-567.01,0.00014642,2]
[337955380,1726215054008,-1077.13,0.00014642,2]
[337955381,1726215054018,-705.72,0.00014642,2]
[337955382,1726215054029,-657.8,0.00014642,2]
[337955383,1726215054039,-500.0,0.00014642,2]
[337955384,1726215054049,-2304.45,0.00014642,2]
[337955385,1726215054059,-500.0,0.00014642,2]
[337955386,1726215054069,-500.0,0.00014642,2]
[337955387,1726215054078,-500.0,0.00014642,2]
[337955388,1726215054088,-555.07,0.00014642,2]
[337955389,1726215054097,-2081.77,0.00014642,2]
[337955390,1726215054107,-3984.62,0.00014642,2]
[337955391,1726215054116,-1259.45,0.00014642,2]
[337955392,1726215054126,-1388.79,0.00014642,2]
[337955393,1726215054136,-515.33,0.00014642,2]
[337955394,1726215054146,-529.02,0.00014642,2]
[337955395,1726215054156,-1160.88,0.00014642,2]
[337955396,1726215054166,-9159.22,0.00014642,2]
[337955397,1726215054176,-500.0,0.00014642,2]
[337955398,1726215054185,-500.0,0.00014642,2]
[337955399,1726215054195,-1378.69,0.00014642,2]
[337955400,1726215054215,-500.0,0.00014642,2]
[337955401,1726215054224,-546.42,0.00014642,2]
[337955402,1726215054233,-500.0,0.00014642,2]
[337955403,1726215054244,-512.21,0.00014642,2]
[337955404,1726215054254,-1969.34,0.00014642,2]
[337955405,1726215054263,-500.0,0.00014642,2]
[337955406,1726215054273,-500.0,0.00014642,2]
[337955407,1726215054283,-529.10283637,0.00014642,2]
[337955408,1726215054293,-510.12,0.00014642,2]
[337955409,1726215054303,-1718.15,0.00014642,2]
[337955410,1726215054314,-500.0,0.00014642,2]
[337955411,1726215054323,-500.0,0.00014642,2]
[337955412,1726215054332,-930.15,0.00014642,2]
[337955413,1726215054342,-995.15,0.00014642,2]
[337955414,1726215054351,-500.0,0.00014642,2]
[337955415,1726215054361,-507.67,0.00014642,2]
[337955416,1726215054370,-500.0,0.00014642,2]
[337955417,1726215054384,-500.0,0.00014642,2]
[337955418,1726215054395,-500.0,0.00014642,2]
[337955419,1726215054405,-1499.63,0.00014642,2]
[337955420,1726215054414,-816.89,0.00014642,2]
[337955421,1726215054423,-963.72,0.00014642,2]
[337955422,1726215054433,-647.64,0.00014642,2]
[337955423,1726215054442,-530.2,0.00014642,2]
[337955424,1726215054455,-184.651,0.00014655,2]
[337955425,1726215054465,-400.0,0.00014686,2]
[337955426,1726215054475,-200.0,0.000147,2]
[337955427,1726215054485,-150.0,0.000147,2]
[337955428,1726215054495,-1008.96,0.0001471,2]
[337955429,1726215054505,-150.0,0.00014714,2]
[337955430,1726215054515,-11771.01454458,0.00014724,2]
[337955431,1726215054524,-3000.0,0.000148,2]
[337955432,1726215054535,-2852.20446138,0.00014834,2]
[337955433,1726215054545,-5864.48008958,0.00014834,2]
[337955434,1726215054555,-150.0,0.0001485,2]
[337955435,1726215054565,-600.3490638,0.000149,2]
[337955436,1726215054574,-152.49,0.000149,31]
[337955437,1726215054584,-152.49,0.000149,31]
[337955438,1726215054594,-152.49,0.000149,31]
[337955439,1726215054605,-152.49,0.000149,31]
[337955440,1726215054615,-152.49,0.000149,31]
[337955441,1726215054624,-152.49,0.000149,31]
[337955442,1726215054634,-152.49,0.000149,31]
[337955443,1726215054644,-212.10914325,0.000149,2]
[337955444,1726215054654,-212.10914323,0.000149,2]
[337955445,1726215054664,-212.10914323,0.000149,2]
[337955446,1726215054674,-641.5,0.00014914,2]
[337955447,1726215054683,-500.0,0.00014914,2]
[337955448,1726215054693,-589.65,0.00014914,2]
[337955449,1726215054715,-707.44,0.00014914,2]
[337955450,1726215054724,-500.0,0.00014914,2]
[337955451,1726215054734,-562.19,0.00014914,2]
[337955452,1726215054744,-500.0,0.00014914,2]
[337955453,1726215054753,-500.0,0.00014914,2]
[337955454,1726215054763,-1732.36,0.00014914,2]
[337955455,1726215054772,-734.28,0.00014914,2]
[337955456,1726215054782,-656.1,0.00014914,2]
[337955457,1726215054791,-793.9,0.00014914,2]
[337955458,1726215054801,-500.0,0.00014914,2]
[337955459,1726215054810,-500.0,0.00014914,2]
[337955460,1726215054820,-500.0,0.00014914,2]
[337955461,1726215054830,-500.0,0.00014914,2]
[337955462,1726215054839,-9936.32,0.00014914,2]
[337955463,1726215054849,-589.8,0.00014914,2]
[337955464,1726215054858,-500.0,0.00014914,2]
[337955465,1726215054868,-500.0,0.00014914,2]
[337955466,1726215054878,-877.92,0.00014914,2]
[337955467,1726215054888,-1491.4,0.00014914,2]
[337955468,1726215054897,-603.17,0.00014915,2]
[337955469,1726215054907,-409.78931632,0.00014915,2]
[337955470,1726215054917,-2031.99,0.00014915,2]
[337955471,1726215054927,-7749.41,0.00014915,2]
[337955472,1726215054937,-1172.44,0.00014915,2]
[337955473,1726215054946,-11772.08,0.00014915,2]
[337955474,1726215054956,-500.0,0.00014915,2]
[337955475,1726215054965,-3573.67,0.00014915,2]
[337955476,1726215054975,-698.45,0.00014915,2]
[337955477,1726215054984,-500.0,0.00014915,2]
[337955478,1726215054993,-597.43,0.00014915,2]
[337955479,1726215055003,-500.0,0.00014915,2]
[337955480,1726215055012,-870.07,0.00014915,2]
[337955481,1726215055022,-566.37,0.00014915,2]
[337955482,1726215055032,-500.0,0.00014915,2]
[337955483,1726215055041,-500.0,0.00014915,2]
[337955484,1726215055051,-500.0,0.00014915,2]
[337955485,1726215055060,-500.0,0.00014915,2]
[337955486,1726215055069,-500.0,0.00014916,2]
[337955487,1726215055079,-500.0,0.00014916,2]
[337955488,1726215055088,-833.65,0.00014916,2]
[337955489,1726215055098,-500.0,0.00014916,2]
[337955490,1726215055107,-500.0,0.00014916,2]
[337955491,1726215055117,-500.0,0.00014916,2]
[337955492,1726215055126,-525.23,0.00014916,2]
[337955493,1726215055136,-940.19,0.00014916,2]
[337955494,1726215055145,-1501.03,0.00014916,2]
[337955495,1726215055155,-500.0,0.00014916,2]
[337955496,1726215055165,-500.0,0.00014916,2]
[337955497,1726215055174,-500.0,0.00014916,2]
[337955498,1726215055183,-500.0,0.00014916,2]
[337955499,1726215055192,-525.92,0.00014916,2]
[337955500,1726215055203,-500.0,0.00014916,2]
[337955501,1726215055212,-500.0,0.00014916,2]
[337955502,1726215055221,-548.22,0.00014916,2]
[337955503,1726215055230,-502.91,0.00014916,2]
[337955504,1726215055240,-500.0,0.00014916,2]
[337955505,1726215055250,-568.98,0.00014916,2]
[337955506,1726215055259,-500.0,0.00014916,2]
[337955507,1726215055268,-528.37,0.00014916,2]
[337955508,1726215055278,-562.82,0.00014916,2]
[337955509,1726215055287,-500.0,0.00014916,2]
[337955510,1726215055296,-500.0,0.00014916,2]
[337955511,1726215055305,-500.0,0.00014916,2]
[337955512,1726215055315,-500.0,0.00014916,2]
[337955513,1726215055325,-500.0,0.00014916,2]
[337955514,1726215055334,-500.0,0.00014916,2]
[337955515,1726215055344,-500.0,0.00014916,2]
[337955516,1726215055353,-500.0,0.00014916,2]
[337955517,1726215055362,-500.0,0.00014916,2]
[337955518,1726215055371,-500.0,0.00014916,2]
[337955519,1726215055385,-500.0,0.00014916,2]
[337955520,1726215055395,-660.73,0.00014916,2]
[337955521,1726215055406,-309.39,0.00014916,2]
[337955522,1726215055416,-445.28622798,0.00014916,2]
[337955523,1726215055427,-500.0,0.00014916,2]
[337955524,1726215055438,-689.93,0.00014916,2]
[337955525,1726215055450,-1031.64,0.00014916,2]
[337955526,1726215055460,-500.0,0.00014916,2]
[337955527,1726215055472,-500.0,0.00014916,2]
[337955528,1726215055482,-500.0,0.00014916,2]
[337955529,1726215055492,-1094.0,0.00014916,2]
[337955530,1726215055502,-500.0,0.00014916,2]
[337955531,1726215055511,-500.0,0.00014916,2]
[337955532,1726215055521,-621.08,0.00014916,2]
[337955533,1726215055531,-548.15,0.00014916,2]
[337955534,1726215055540,-688.54,0.00014916,2]
[337955535,1726215055550,-500.0,0.00014916,2]
[337955536,1726215055560,-504.46,0.00014916,2]
[337955537,1726215055569,-500.0,0.00014916,2]
[337955538,1726215055579,-500.0,0.00014916,2]
[337955539,1726215055588,-500.0,0.00014916,2]